bitfinex-derivatives/quotes_ETHF0:USTF0_20240917
["timestamp","ask_amount","ask_price","bid_price","bid_amount"]
[1726568342944,0.43186,2315.7,2315.6,0.43186]
[1726568343145,0.43184,2315.8,2315.7,0.43184]
[1726568344154,0.43186,2315.7,2315.6,3.63965]
[1726568344453,0.43192,2315.4,2315.3,3.2078]
[1726568344660,0.43194,2315.3,2315.2,0.43193]
[1726568344855,0.43194,2315.3,2315.2,3.63973]
[1726568345053,0.43192,2315.4,2315.3,0.43191]
[1726568345254,0.43192,2315.4,2314.8,1.08005]
[1726568345255,0.43196,2315.2,2315.1,0.43195]
[1726568345448,0.3958,2315.3,2315.2,0.43194]
[1726568345848,0.82773,2315.3,2315.2,0.43194]
[1726568346750,0.3958,2315.3,2315.2,0.43194]
[1726568347353,0.3958,2315.3,2315.0,3.32]
[1726568347354,0.3958,2315.3,2314.8,6.5278]
[1726568347559,0.43197,2315.1,2314.8,6.5278]
[1726568347761,0.43195,2315.2,2315.1,0.43195]
[1726568348063,0.3958,2315.3,2315.1,0.43195]
[1726568348255,0.43194,2315.2,2315.1,0.43195]
[1726568348852,0.3958,2315.3,2314.8,6.5278]
[1726568349053,0.43197,2315.1,2315.0,0.43198]
[1726568349450,1.07988,2315.2,2314.8,6.5278]
[1726568349654,0.43198,2315.0,2314.9,3.2078]
[1726568349851,4.68345,2315.3,2314.5,6.5278]
[1726568350057,4.68345,2315.3,2314.9,0.43199]
[1726568350355,0.432,2314.9,2314.8,0.43202]
[1726568350556,0.43197,2315.1,2315.0,0.43198]
[1726568350777,0.43197,2315.1,2314.9,0.43199]
[1726568351059,4.68344,2315.3,2314.8,3.2078]
[1726568351060,0.43198,2315.0,2314.8,3.2078]
[1726568351262,4.68344,2315.3,2314.7,0.43203]
[1726568351263,0.432,2314.9,2314.7,0.43203]
[1726568351461,0.43202,2314.8,2314.7,0.43203]
[1726568351658,0.43201,2314.9,2314.7,0.43203]
[1726568351865,0.43201,2314.9,2314.8,3.63982]
[1726568352067,0.43201,2314.9,2314.8,3.2078]
[1726568352256,0.43201,2314.9,2314.8,0.43202]
[1726568352458,0.43202,2314.8,2314.7,3.2078]
[1726568352861,0.43204,2314.7,2314.6,0.43205]
[1726568353270,4.32,2314.7,2314.6,0.43206]
[1726568353469,0.43203,2314.8,2314.7,0.43204]
[1726568353660,0.4014,2314.9,2314.6,0.43205]
[1726568353856,0.43203,2314.8,2314.6,0.43205]
[1726568354463,0.43204,2314.7,2314.6,0.43205]
[1726568354662,0.4014,2314.9,2314.4,3.2078]
[1726568354962,0.83146,2314.6,2314.5,0.43208]
[1726568355263,0.3994,2314.6,2314.5,0.43208]
[1726568355567,0.43203,2314.8,2314.7,0.43204]
[1726568356370,4.28779,2315.0,2314.7,0.43204]
[1726568356559,6.31098,2316.1,2314.8,7.64]
[1726568356560,3.2078,2315.4,2314.8,7.64]
[1726568356863,3.2078,2315.4,2315.3,0.43193]
[1726568357267,3.2078,2315.4,2315.3,4.75113]
[1726568357668,0.43184,2315.8,2315.3,4.3192]
[1726568357971,0.43184,2315.8,2315.6,3.63967]
[1726568358158,0.43185,2315.7,2315.4,0.43189]
[1726568358363,0.21113517,2316.5,2315.2,6.5278]
[1726568358364,4.0136,2316.7,2315.7,1.07964]
[1726568358564,0.8058,2316.7,2316.1,3.2078]
[1726568358768,1.23748,2316.7,2316.3,3.2078]
[1726568358964,0.8058,2316.7,2316.3,3.2078]
[1726568359166,0.8058,2316.7,2316.5,0.43169]
[1726568359466,0.8058,2316.7,2316.4,0.43171]
[1726568360065,0.8058,2316.7,2316.5,0.4317]
[1726568360567,0.4024,2316.9,2316.6,0.43167]
[1726568361159,0.83403,2316.9,2316.6,0.43167]
[1726568361367,0.83403,2316.9,2316.7,0.43166]
[1726568361368,0.4024,2316.9,2316.7,0.43166]
[1726568361657,0.43165,2316.8,2316.5,0.43169]
[1726568362060,0.43165,2316.8,2316.3,3.2078]
[1726568362462,0.4024,2316.9,2316.3,3.2078]
[1726568362758,0.43169,2316.6,2316.3,0.43173]
[1726568362964,0.43169,2316.6,2316.3,3.63953]
[1726568363369,1.4815,2316.9,2316.4,0.43172]
[1726568363370,0.43168,2316.7,2316.4,0.43172]
[1726568363562,0.43168,2316.6,2316.3,3.63953]
[1726568363871,1.4815,2316.9,2316.4,0.43172]
[1726568364073,0.43168,2316.7,2316.4,0.43172]
[1726568364265,0.43169,2316.6,2316.4,0.43172]
[1726568364663,4.74849,2316.6,2316.3,3.2078]
[1726568364868,0.43169,2316.6,2316.4,0.43172]
[1726568365672,0.43169,2316.6,2316.3,3.2078]
[1726568365673,0.43165,2316.8,2316.5,0.43169]
[1726568365873,0.43165,2316.8,2316.6,0.43168]
[1726568366066,3.6005,2317.0,2316.6,3.2078]
[1726568366365,0.3927,2317.0,2316.9,3.63943]
[1726568366963,0.43163,2316.9,2316.7,0.43165]
[1726568367163,0.43166,2316.8,2316.6,0.43167]
[1726568367362,4.67954,2317.0,2316.5,3.2078]
[1726568367568,0.43169,2316.6,2316.4,0.43171]
[1726568367762,0.43169,2316.6,2316.4,0.43172]
[1726568368375,0.43169,2316.6,2316.5,0.4317]
[1726568368561,0.43169,2316.6,2316.3,3.2078]
[1726568368763,0.4317,2316.5,2316.3,3.63953]
[1726568368965,0.4317,2316.6,2316.4,0.43172]
[1726568369383,0.7818,2316.7,2316.4,0.43172]
[1726568369675,0.4317,2316.6,2316.4,0.43172]
[1726568370066,4.152,2317.1,2316.4,0.43172]
[1726568370067,7.1479951,2317.3,2316.9,0.43163]
[1726568370268,0.43159,2317.2,2317.0,0.43159]
[1726568370564,3.2078,2317.6,2317.5,0.43152]
[1726568370768,7.523,2317.6,2317.5,0.43152]
[1726568371268,7.9545,2317.6,2317.4,0.43152]
[1726568371468,3.6393,2317.6,2317.4,0.43152]
[1726568371669,7.9545,2317.6,2317.4,0.43152]
[1726568371869,7.523,2317.6,2317.4,0.43152]
[1726568372076,7.523,2317.6,2317.1,3.2078]
[1726568372077,0.43153,2317.4,2317.1,3.2078]
[1726568372378,0.43154,2317.4,2317.1,3.2078]
[1726568372565,3.2078,2317.6,2317.1,0.43158]
[1726568372762,1.07884,2317.4,2317.1,0.43159]
[1726568373172,0.43157,2317.3,2317.2,0.43157]
[1726568373374,0.43153,2317.5,2317.4,0.43153]
[1726568373878,4.74673,2317.5,2317.4,0.43153]
[1726568375377,4.74672,2317.5,2317.4,0.43153]
[1726568375570,3.2078,2317.6,2317.1,3.2078]
[1726568375775,0.43153,2317.5,2317.4,0.43153]
[1726568375975,3.2078,2317.6,2317.3,0.43154]
[1726568376477,0.43153,2317.4,2317.3,0.43154]
[1726568376976,0.43153,2317.5,2317.3,0.43154]
[1726568377178,0.43153,2317.5,2317.4,0.43153]
[1726568377375,0.43153,2317.5,2317.4,0.43152]
[1726568378182,0.43153,2317.5,2317.3,0.43154]
[1726568378578,4.28653,2317.7,2317.4,0.43153]
[1726568378880,0.43154,2317.4,2317.3,0.43154]
[1726568380587,0.43153,2317.5,2317.4,0.43153]
[1726568381078,0.43154,2317.4,2317.3,0.43155]
[1726568381581,0.43156,2317.3,2317.2,0.43156]
[1726568382080,0.43154,2317.4,2317.3,0.43154]
[1726568385477,0.43165,2316.8,2316.7,0.217]
[1726568385670,1.2064,2317.3,2316.6,3.2078]
[1726568385872,0.43157,2317.2,2317.1,0.43159]
[1726568386476,0.7991,2317.3,2317.2,0.43157]
[1726568386675,0.7991,2317.3,2317.2,3.63937]
[1726568387286,1.23065,2317.3,2317.2,3.63937]
[1726568387491,0.7991,2317.3,2317.2,3.63937]
[1726568388682,1.23065,2317.3,2317.2,3.63937]
[1726568389387,1.23065,2317.3,2317.2,3.2078]
[1726568389584,0.43158,2317.2,2316.8,1.07912]
[1726568389883,0.43158,2317.2,2317.1,0.43159]
[1726568390878,0.43159,2317.1,2317.0,0.4316]
[1726568391088,0.43161,2317.0,2316.9,0.43162]
[1726568391394,1.07894,2317.2,2316.7,3.2078]
[1726568391580,0.43162,2317.0,2316.8,3.2078]
[1726568391781,0.43164,2316.9,2316.8,3.63944]
[1726568391981,0.43163,2317.0,2316.9,0.43163]
[1726568392585,0.43164,2316.9,2316.8,0.43164]
[1726568393382,0.43164,2316.9,2316.8,3.63944]
[1726568393684,0.43164,2316.9,2316.8,0.43164]
[1726568396191,0.43165,2316.8,2316.7,0.43166]
[1726568396978,0.43167,2316.7,2316.6,0.43167]
[1726568397192,0.83407,2316.7,2316.6,0.43167]
[1726568397486,0.4317,2316.6,2316.5,0.43169]
[1726568397897,0.4317,2316.5,2316.4,6.95951]
[1726568398190,0.4317,2316.6,2316.5,0.4317]
[1726568398795,0.83408,2316.7,2316.6,0.43168]
[1726568399493,0.4024,2316.7,2316.6,0.43168]
[1726568399788,0.81762,2317.0,2316.9,0.43163]
[1726568399987,0.386,2317.0,2316.9,0.43163]
[1726568400392,7.79134,2317.4,2317.1,0.43159]
[1726568400585,0.4195,2317.5,2317.4,0.43153]
[1726568400785,0.4227,2317.6,2317.5,0.43152]
[1726568401188,0.8542,2317.6,2317.5,0.43152]
[1726568401389,0.8542,2317.6,2317.2,4.39892]
[1726568401390,0.43152,2317.5,2317.4,0.43152]
[1726568401593,0.43154,2317.4,2317.2,3.32]
[1726568401788,1.50146,2317.6,2317.1,3.2078]
[1726568401789,0.43153,2317.5,2317.3,0.43155]
[1726568402089,0.43154,2317.4,2317.2,0.43156]
[1726568402900,0.43154,2317.4,2317.3,0.43155]
[1726568403192,0.43154,2317.4,2317.2,0.43156]
[1726568403391,0.4227,2317.6,2317.3,0.43155]
[1726568403392,0.43153,2317.5,2317.3,0.43155]
[1726568403587,0.43154,2317.4,2317.2,0.43156]
[1726568403788,0.85421,2317.6,2317.1,3.2078]
[1726568404100,0.4227,2317.6,2317.5,0.43152]
[1726568404293,0.8542,2317.6,2317.4,0.43152]
[1726568404491,0.8542,2317.6,2317.5,0.43152]
[1726568404492,0.4227,2317.6,2317.5,0.43152]
[1726568405105,0.8542,2317.6,2317.4,0.43152]
[1726568405292,0.8542,2317.6,2317.2,3.32]
[1726568405794,0.8542,2317.6,2317.4,0.43152]
[1726568406099,0.8542,2317.6,2317.5,0.43152]
[1726568406296,0.8542,2317.6,2317.4,0.43152]
[1726568406798,0.8542,2317.6,2317.5,0.43152]
[1726568406993,0.8542,2317.6,2317.4,0.43152]
[1726568407895,0.8542,2317.6,2317.2,3.32]
[1726568408789,0.4227,2317.6,2317.5,0.43152]
[1726568409192,0.4227,2317.6,2317.2,3.32]
[1726568409397,0.4227,2317.6,2317.2,3.75156]
[1726568409589,1.50146,2317.6,2317.1,3.2078]
[1726568409794,1.0788,2317.5,2317.2,0.43156]
[1726568409995,0.43155,2317.3,2317.2,0.43156]
[1726568410198,1.0788,2317.5,2317.3,0.43155]
[1726568410199,0.43155,2317.4,2317.3,0.43155]
[1726568410796,0.43156,2317.3,2317.2,0.43156]
[1726568411993,0.43155,2317.4,2317.3,0.43155]
[1726568412292,1.0788,2317.5,2317.1,3.2078]
[1726568412293,0.43153,2317.5,2317.4,0.43153]
[1726568412701,0.43154,2317.4,2317.3,0.43154]
[1726568413201,0.43157,2317.3,2317.2,0.43156]
[1726568413594,1.07886,2317.4,2317.1,3.2078]
[1726568413790,1.07891,2317.3,2317.0,3.32]
[1726568413997,0.43159,2317.2,2317.0,3.32]
[1726568414305,0.43159,2317.1,2317.0,0.43159]
[1726568415804,0.43165,2316.8,2316.7,4.88183976]
[1726568416005,0.43164,2316.9,2316.8,0.43163]
[1726568416298,0.8087,2317.0,2316.5,1.13018976]
[1726568416610,0.43171,2316.5,2316.4,3.63951]
[1726568416901,1.07923,2316.6,2316.3,1.13018976]
[1726568417106,0.83022,2316.4,2316.3,0.43174]
[1726568417305,0.83022,2316.4,2316.3,3.2078]
[1726568417508,0.83022,2316.4,2316.2,4.88193976]
[1726568417509,0.3985,2316.4,2316.2,4.88193976]
[1726568417704,0.83023,2316.4,2316.3,3.63954]
[1726568417900,0.83023,2316.4,2316.2,3.32]
[1726568418092,0.83023,2316.4,2316.2,3.2078]
[1726568418093,0.3985,2316.4,2316.2,3.2078]
[1726568418293,0.43175,2316.3,2316.1,0.43178]
[1726568418494,0.84905,2316.3,2316.1,0.43178]
[1726568419604,1.0794,2316.2,2315.6,6.5278]
[1726568419809,1.0794,2316.2,2315.9,3.2078]
[1726568419810,0.4318,2316.0,2315.9,3.2078]
[1726568420010,1.0794,2316.2,2315.6,3.32]
[1726568420312,0.4318,2316.0,2315.9,3.2078]
[1726568420500,0.4318,2316.0,2315.8,0.43182]
[1726568421499,0.4318,2316.0,2315.6,3.32]
[1726568421803,0.4318,2316.0,2315.9,3.2078]
[1726568422008,0.4318,2316.0,2315.8,0.43182]
[1726568422909,0.4318,2316.0,2315.6,6.5278]
[1726568423208,1.07942,2316.2,2315.8,0.43183]
[1726568423400,4.28722,2316.2,2315.8,0.43183]
[1726568423601,0.43181,2316.0,2315.8,0.43183]
[1726568424095,1.07946,2316.1,2315.7,0.43184]
[1726568424299,1.07946,2316.1,2315.8,0.43183]
[1726568424300,0.43182,2315.9,2315.8,0.43183]
[1726568425503,0.43181,2316.0,2315.8,0.43182]
[1726568425910,0.43181,2316.0,2315.8,3.13182]
[1726568426109,0.43181,2316.0,2315.9,0.43181]
[1726568426611,0.43178,2316.1,2316.0,0.43179]
[1726568426813,1.49667,2316.3,2316.1,0.43177]
[1726568426814,0.43177,2316.2,2316.1,0.43177]
[1726568427307,0.43176,2316.2,2316.1,0.43177]
[1726568427709,0.84905,2316.3,2316.2,0.43176]
[1726568427909,0.43176,2316.2,2316.1,0.43176]
[1726568428107,0.43177,2316.2,2316.1,0.43177]
[1726568428308,0.43178,2316.1,2316.0,3.13178]
[1726568429205,0.43177,2316.2,2316.1,0.43177]
[1726568429611,4.74937,2316.2,2316.1,0.43177]
[1726568430607,0.43178,2316.1,2316.0,3.13178]
[1726568431514,0.43177,2316.2,2316.1,0.43177]
[1726568431922,0.43179,2316.1,2316.0,0.43179]
[1726568433221,0.43177,2316.2,2316.1,0.43176]
[1726568436221,0.43178,2316.1,2316.0,3.13178]
[1726568436821,0.43177,2316.2,2316.1,0.43176]
[1726568437517,0.84906,2316.3,2316.2,0.43176]
[1726568437719,0.43177,2316.2,2316.1,0.43176]
[1726568439118,0.43178,2316.1,2316.0,3.13179]
[1726568439921,0.43178,2316.1,2316.0,0.43179]
[1726568442326,0.43177,2316.2,2316.1,0.43176]
[1726568445417,1.49666,2316.3,2315.8,3.2078]
[1726568445418,0.4173,2316.3,2315.8,3.2078]
[1726568445624,1.07945,2316.1,2315.6,1.07968]
[1726568445833,0.4318,2316.0,2315.9,0.43181]
[1726568447226,0.43181,2316.0,2315.9,0.43181]
[1726568448828,0.43179,2316.1,2316.0,0.43178]
[1726568449131,0.4318,2316.0,2315.9,3.1318]
[1726568453041,0.4318,2316.0,2315.9,0.4318]
[1726568457541,0.43179,2316.1,2316.0,0.43179]
[1726568458039,0.43182,2316.0,2315.9,0.43181]
[1726568458943,0.43183,2315.9,2315.8,0.43182]
[1726568459141,0.43183,2315.9,2315.7,0.43184]
[1726568459142,0.43185,2315.8,2315.7,0.43184]
[1726568459744,0.43187,2315.6,2315.5,1.56205976]
[1726568460054,1.07959,2315.8,2315.4,3.2078]
[1726568460055,1.07964,2315.7,2315.4,3.2078]
[1726568460255,0.8522,2315.5,2315.4,0.43189]
[1726568460649,0.8522,2315.5,2315.4,3.2078]
[1726568460949,0.8522,2315.5,2315.4,0.43191]
[1726568461352,0.85221,2315.5,2315.4,0.43191]
[1726568461553,0.43192,2315.4,2315.3,0.43192]
[1726568461748,1.25572,2315.4,2315.3,0.43192]
[1726568462048,0.43194,2315.2,2315.1,1.56213976]
[1726568462356,0.43196,2315.1,2315.0,1.55815817]
[1726568462547,0.81626,2315.1,2315.0,0.43198]
[1726568462748,0.432,2314.9,2314.8,1.55818817]
[1726568462951,0.432,2314.9,2314.8,1.12617817]
[1726568463152,0.43201,2314.9,2314.8,0.43202]
[1726568463354,0.8238,2314.9,2314.7,0.43202]
[1726568463656,1.25581,2314.9,2314.7,0.43202]
[1726568463857,0.43202,2314.8,2314.7,0.43202]
[1726568464449,0.43202,2314.8,2314.7,0.43204]
[1726568465054,0.8238,2314.9,2314.6,0.43206]
[1726568465243,0.4168,2314.7,2314.6,0.43206]
[1726568471349,0.4168,2314.7,2314.6,1.51221]
[1726568471554,0.4168,2314.7,2314.6,0.43206]
[1726568474664,0.8238,2314.9,2314.8,1.51208]
[1726568474860,0.4076,2314.9,2314.8,7.41988]
[1726568475055,0.4076,2314.9,2314.8,4.21208]
[1726568475255,0.4076,2314.9,2314.8,4.71988]
[1726568475450,0.4076,2314.9,2314.8,1.51208]
[1726568475859,0.4076,2314.9,2314.8,4.71988]
[1726568476054,0.4076,2314.9,2314.8,1.51208]
[1726568476256,0.4076,2314.9,2314.8,4.71988]
[1726568476456,0.4076,2314.9,2314.8,7.41988]
[1726568477752,0.4076,2314.9,2314.8,4.21208]
[1726568477951,0.4076,2314.9,2314.8,1.51208]
[1726568478354,0.4076,2314.9,2314.8,4.71988]
[1726568478554,0.4076,2314.9,2314.8,1.51208]
[1726568480169,0.4076,2314.9,2314.8,4.71988]
[1726568481572,0.4076,2314.9,2314.8,1.51208]
[1726568482856,0.4076,2314.9,2314.8,0.43202]
[1726568483159,0.8396,2314.9,2314.8,0.43202]
[1726568483353,0.4076,2314.9,2314.8,0.43202]
[1726568486564,0.8396,2314.9,2314.8,0.43202]
[1726568487760,5.80761,2314.9,2314.4,1.08024]
[1726568487960,5.80761,2314.9,2314.5,0.43206]
[1726568487961,0.43207,2314.6,2314.5,0.43206]
[1726568488865,0.83767,2314.6,2314.5,0.43206]
[1726568489080,0.4056,2314.6,2314.5,0.43206]
[1726568491768,0.4056,2314.6,2314.5,1.51226]
[1726568491976,0.4056,2314.6,2314.5,0.43206]
[1726568493672,0.4056,2314.6,2314.5,1.51226]
[1726568499070,0.4056,2314.6,2314.5,2.59246]
[1726568499775,0.4189,2314.7,2314.6,0.43206]
[1726568500479,0.4189,2314.7,2314.6,1.51221]
[1726568504074,0.4076,2314.8,2314.7,1.51214]
[1726568504268,0.4076,2314.8,2314.7,4.71994]
[1726568504469,0.4076,2314.8,2314.7,5.80004]
[1726568504671,0.4076,2314.9,2314.7,3.2078]
[1726568504880,0.4076,2314.9,2314.8,2.59214]
[1726568505376,0.4076,2314.9,2314.8,5.23507598]
[1726568505965,0.4076,2314.9,2314.8,6.47507598]
[1726568506471,0.4076,2314.9,2314.8,4.95831817]
[1726568507179,0.4076,2314.9,2314.8,6.47576005]
[1726568507477,0.4076,2314.9,2314.8,6.47577495]
[1726568507681,0.4076,2314.9,2314.8,7.04856886]
[1726568507868,0.4076,2314.9,2314.8,5.80856886]
[1726568508184,0.4076,2314.9,2314.8,10.12856886]
[1726568508577,0.4076,2314.9,2314.8,6.91214]
[1726568514175,0.4076,2314.9,2314.8,9.61214]
[1726568515575,0.4076,2314.9,2314.8,12.25783823]
[1726568516077,0.4076,2314.9,2314.8,7.93783823]
[1726568516277,0.4076,2314.9,2314.8,6.42043586]
[1726568517081,0.4076,2314.9,2314.8,7.93782121]
[1726568518081,0.4076,2314.9,2314.8,6.42043586]
[1726568518582,0.4076,2314.9,2314.8,3.72043586]
[1726568523780,0.4076,2314.9,2314.8,2.59214]
[1726568525587,0.4076,2314.9,2314.8,5.79994]
[1726568527890,0.4076,2314.9,2314.8,7.03994]
[1726568530093,0.8109,2315.1,2315.0,1.51194]
[1726568531387,0.8109,2315.1,2315.0,2.75194]
[1726568540392,0.8109,2315.1,2315.0,0.43198]
[1726568540591,0.8109,2315.1,2315.0,1.51194]
[1726568544696,0.8109,2315.1,2315.0,0.43198]
[1726568545803,0.8109,2315.1,2315.0,1.56027586]
[1726568546299,0.8109,2315.1,2315.0,0.43198]
[1726568546995,0.8109,2315.1,2315.0,1.56027586]
[1726568548101,0.8109,2315.1,2315.0,3.09786432]
[1726568548499,0.8109,2315.1,2315.0,4.17782432]
[1726568548801,0.8109,2315.1,2315.0,4.74850054]
[1726568549202,0.8109,2315.1,2315.0,4.74881534]
[1726568549707,0.8109,2315.1,2315.0,3.66885534]
[1726568550393,0.8109,2315.1,2315.0,3.66935198]
[1726568550599,5.1301,2315.1,2315.0,3.10009842]
[1726568550900,5.1301,2315.1,2315.0,3.10011052]
[1726568551299,0.8109,2315.1,2315.0,3.10011052]
[1726568551495,0.8109,2315.1,2315.0,3.66935198]
[1726568553102,0.8109,2315.1,2315.0,6.87715198]
[1726568553805,0.8109,2315.1,2315.0,6.87703911]
[1726568554403,0.8109,2315.1,2315.0,6.30768017]
[1726568555104,0.43204,2314.7,2314.6,2.13102208]
[1726568555303,0.43204,2314.7,2314.6,1.69897208]
[1726568555502,4.75204,2314.7,2314.6,0.43206]
[1726568555705,0.43206,2314.6,2314.5,2.13103208]
[1726568555898,0.43205,2314.7,2314.6,0.43205]
[1726568556101,0.43205,2314.7,2314.5,2.13103208]
[1726568556102,0.43206,2314.6,2314.5,2.13103208]
[1726568556296,0.43206,2314.6,2314.5,0.43206]
[1726568556497,4.75286,2314.6,2314.5,0.43206]
[1726568558104,5.59106,2314.6,2314.5,0.43206]
[1726568558305,6.01066,2314.6,2314.5,0.43206]
[1726568558805,1.2578,2314.6,2314.5,0.43206]
[1726568559012,1.2578,2314.6,2314.5,1.67206]
[1726568559709,1.2578,2314.6,2314.5,0.43206]
[1726568559899,1.2578,2314.6,2314.5,1.67206]
[1726568560907,1.2578,2314.6,2314.5,0.43206]
[1726568563013,1.68986,2314.6,2314.5,0.43208]
[1726568564304,1.2578,2314.6,2314.5,0.43208]
[1726568564515,1.2578,2314.6,2314.5,1.67208]
[1726568564711,1.2201,2315.1,2314.5,6.7642]
[1726568564918,0.8107,2315.1,2315.0,1.67198]
[1726568565310,0.8107,2315.1,2315.0,4.87978]
[1726568571015,0.8107,2315.1,2315.0,1.67198]
[1726568571421,0.8107,2315.1,2315.0,4.87978]
[1726568572013,0.8107,2315.1,2315.0,1.67198]
[1726568572212,0.8107,2315.1,2315.0,4.87978]
[1726568573026,0.8107,2315.1,2315.0,1.67198]
[1726568573221,0.8107,2315.1,2315.0,4.87978]
[1726568573616,0.8107,2315.1,2315.0,1.67198]
[1726568573822,0.8107,2315.1,2315.0,4.87978]
[1726568577522,0.43191,2315.5,2315.4,0.43191]
[1726568577729,0.8104,2315.5,2315.4,1.67191]
[1726568578419,1.07957,2315.9,2315.4,5.5592]
[1726568578615,1.07957,2315.9,2315.7,0.43185]
[1726568578616,1.24225,2315.8,2315.7,0.43185]
[1726568578817,1.24225,2315.8,2315.6,1.67186]
[1726568579921,0.43185,2315.7,2315.6,1.67186]
[1726568580227,0.43185,2315.7,2315.5,1.24]
[1726568580417,0.8104,2315.8,2315.6,0.43186]
[1726568580616,0.43185,2315.7,2315.5,0.43187]
[1726568580926,0.43186,2315.7,2315.6,0.43187]
[1726568581721,0.43185,2315.7,2315.6,0.43187]
[1726568582027,0.43187,2315.7,2315.6,0.43186]
[1726568582226,0.43188,2315.6,2315.5,0.43189]
[1726568582626,4.75028,2315.6,2315.5,0.43189]
[1726568583127,0.4319,2315.5,2315.4,0.43189]
[1726568583328,0.8355,2315.5,2315.4,0.43189]
[1726568584225,0.4036,2315.5,2315.4,0.43189]
[1726568585534,0.83549,2315.5,2315.4,0.43189]
[1726568586231,0.43194,2315.3,2315.2,0.43192]
[1726568589034,0.43196,2315.2,2315.1,0.43194]
[1726568589232,0.43194,2315.3,2315.2,0.43193]
[1726568589834,1.51176,2315.3,2315.2,0.43193]
[1726568590031,0.43198,2315.1,2315.0,0.43196]
[1726568590540,0.81548,2315.1,2315.0,0.43196]
[1726568592740,0.3835,2315.1,2315.0,0.43196]
[1726568592939,0.43194,2315.3,2315.2,0.43193]
[1726568593135,1.61292,2315.4,2315.3,0.43193]
[1726568593626,5.93212,2315.4,2315.3,0.43193]
[1726568594043,1.61292,2315.4,2315.3,0.43193]
[1726568594537,2.6927,2315.4,2315.3,0.43193]
[1726568596537,1.61292,2315.4,2315.3,0.43193]
[1726568602441,0.43195,2315.3,2315.2,0.43193]
[1726568608237,0.43195,2315.3,2315.1,0.43195]
[1726568608238,0.43196,2315.2,2315.1,0.43195]
[1726568620854,0.43197,2315.1,2315.0,3.63976]
[1726568621048,0.43196,2315.2,2315.1,0.43195]
[1726568624053,1.51183,2315.2,2315.1,0.43196]
[1726568624355,1.51188,2315.1,2315.0,0.43196]
[1726568624657,0.432,2315.0,2314.9,0.43199]
[1726568624954,1.08006,2314.8,2314.5,3.94465655]
[1726568625258,0.43208,2314.6,2314.5,0.43206]
[1726568625647,1.64508,2314.6,2314.5,0.43206]
[1726568626048,0.43208,2314.5,2314.4,0.43208]
[1726568635562,0.43209,2314.4,2314.3,5.6034]
[1726568635764,1.67209,2314.4,2314.3,5.6034]
[1726568637368,1.67209,2314.4,2314.3,6.0355]
[1726568640374,1.24,2314.5,2314.4,0.43208]
[1726568641379,1.67209,2314.5,2314.4,0.43208]
[1726568641577,5.99289,2314.5,2314.4,0.43208]
[1726568642173,7.07309,2314.5,2314.4,0.43209]
[1726568644780,4.3208,2314.5,2314.4,0.43209]
[1726568644981,1.64507,2314.6,2314.5,0.43208]
[1726568646882,2.88507,2314.6,2314.5,0.43208]
[1726568650590,3.96522,2314.6,2314.5,0.43208]
[1726568651784,0.43209,2314.5,2314.4,0.43208]
[1726568658092,1.51229,2314.5,2314.4,0.43208]
[1726568659194,0.43209,2314.5,2314.4,0.43208]
[1726568660200,1.51229,2314.5,2314.4,0.43208]
[1726568665089,2.75229,2314.5,2314.4,0.43208]
[1726568667006,2.75229,2314.5,2314.3,5.6034]
[1726568667007,2.59257,2314.4,2314.3,5.6034]
[1726568667202,6.91337,2314.4,2314.3,5.6034]
[1726568667510,8.15337,2314.4,2314.3,5.6034]
[1726568668194,14.15337,2314.4,2314.3,5.6034]
[1726568668798,14.15337,2314.4,2314.3,4.9659]
[1726568669001,14.15337,2314.4,2314.3,4.3284]
[1726568670303,17.36117,2314.4,2314.3,4.3284]
[1726568674203,19.52166,2314.4,2314.3,3.691]
[1726568674698,23.48638567,2314.4,2314.3,3.691]
[1726568674900,19.52166,2314.4,2314.3,3.691]
[1726568679211,17.36117,2314.4,2314.3,3.691]
[1726568683907,17.36117,2314.4,2314.3,3.66685361]
[1726568689921,0.43207,2314.6,2314.4,0.43209]
[1726568690110,0.43204,2314.7,2314.5,1.66076]
[1726568690411,10.81327462,2314.9,2314.5,1.2287]
[1726568690715,6.76756774,2314.9,2314.7,0.43203]
[1726568691216,6.33555774,2314.9,2314.7,0.43202]
[1726568694624,6.76755774,2314.9,2314.7,0.43202]
[1726568695015,6.33555774,2314.9,2314.7,0.43202]
[1726568695315,5.09555774,2314.9,2314.8,0.43202]
[1726568695824,1.24,2315.0,2314.9,0.432]
[1726568696217,1.67199,2315.0,2314.8,0.43201]
[1726568696520,1.67199,2315.0,2314.9,1.6333]
[1726568696726,1.24,2315.0,2314.9,1.6333]
[1726568697217,3.95722491,2315.3,2315.2,0.43194]
[1726568700426,2.04412491,2315.3,2315.2,1.67194]
[1726568700626,5.09555774,2315.5,2315.4,0.43191]
[1726568700820,4.4478,2316.0,2315.8,0.43182]
[1726568701129,0.43181,2315.9,2315.8,0.43182]
[1726568701422,4.8796,2316.0,2315.8,0.43183]
[1726568701723,4.87961,2316.0,2315.8,0.43183]
[1726568702421,3.2078,2316.0,2315.9,0.43181]
[1726568703517,3.6396,2316.0,2315.9,0.43181]
[1726568703913,3.2078,2316.0,2315.9,0.43181]
[1726568704717,3.6396,2316.0,2315.9,0.43181]
[1726568704915,3.2078,2316.0,2315.6,1.24]
[1726568705120,3.2078,2316.0,2315.9,0.43181]
[1726568705326,3.6396,2316.0,2315.9,0.43181]
[1726568705625,3.2078,2316.0,2315.9,0.43181]